[Event "Early-Titled-Tuesday-Blitz-August-29-2023"]
[Site "Chess.com"]
[Date "2023.08.29"]
[Round "1"]
[White "yuki_chess123"]
[Black "tteshan"]
[Result "0-1"]
[WhiteElo "2207"]
[BlackElo "2584"]
[TimeControl "180+1"]
[EndTime "8:08:21 PDT"]
[Termination "tteshan won by resignation"]

1. Nf3 {[%clk 0:02:59.2]} 1... c5 {[%clk 0:03:00.3]} 2. e4 {[%clk 0:02:58.8]}
2... Nc6 {[%clk 0:03:00.4]} 3. Bb5 {[%clk 0:02:58.9]} 3... e6 {[%clk 0:03:00.4]}
4. Bxc6 {[%clk 0:02:58.8]} 4... bxc6 {[%clk 0:03:01.3]} 5. d3 {[%clk 0:02:59.2]}
5... d6 {[%clk 0:03:01.6]} 6. e5 {[%clk 0:02:58.7]} 6... d5 {[%clk 0:03:01.6]}
7. O-O {[%clk 0:02:56.7]} 7... Ne7 {[%clk 0:03:01.9]} 8. c4 {[%clk 0:02:56.6]}
8... Nf5 {[%clk 0:03:02]} 9. Nc3 {[%clk 0:02:56]} 9... Be7 {[%clk 0:03:02.1]}
10. b3 {[%clk 0:02:55.1]} 10... h5 {[%clk 0:03:02.3]} 11. Na4 {[%clk 0:02:53.1]}
11... g5 {[%clk 0:03:00.5]} 12. Ba3 {[%clk 0:02:50.8]} 12... g4 {[%clk
0:02:57.5]} 13. Ne1 {[%clk 0:02:47.2]} 13... Qc7 {[%clk 0:02:52.2]} 14. f4
{[%clk 0:02:36.6]} 14... Ne3 {[%clk 0:02:42.5]} 15. Qe2 {[%clk 0:02:36.6]} 15...
Nxf1 {[%clk 0:02:42.2]} 16. Qxf1 {[%clk 0:02:37]} 16... Qa5 {[%clk 0:02:37.3]}
17. Qf2 {[%clk 0:02:33.6]} 17... Bd7 {[%clk 0:02:33.9]} 18. Bxc5 {[%clk
0:02:30.6]} 18... Bxc5 {[%clk 0:02:25.7]} 19. Nxc5 {[%clk 0:02:31.5]} 19...
O-O-O {[%clk 0:02:18.9]} 20. Nc2 {[%clk 0:02:26.4]} 20... h4 {[%clk 0:02:00.5]}
21. b4 {[%clk 0:02:14.4]} 21... Qb6 {[%clk 0:02:00.1]} 22. Qe3 {[%clk 0:02:08]}
22... Rdg8 {[%clk 0:01:51.3]} 23. a3 {[%clk 0:02:04.4]} 23... Rg6 {[%clk
0:01:36]} 24. Nd4 {[%clk 0:02:03.2]} 24... f6 {[%clk 0:01:26.2]} 25. exf6 {[%clk
0:02:01.7]} 25... Rxf6 {[%clk 0:01:25.9]} 26. Qe5 {[%clk 0:02:01.9]} 26... Rhf8
{[%clk 0:01:23]} 27. Qd6 {[%clk 0:01:50.9]} 27... Qc7 {[%clk 0:01:19.6]} 28.
Qxc7+ {[%clk 0:01:46]} 28... Kxc7 {[%clk 0:01:19.6]} 29. Re1 {[%clk 0:01:44.9]}
29... Kd6 {[%clk 0:01:05.9]} 30. g3 {[%clk 0:01:40.5]} 30... hxg3 {[%clk
0:01:04.1]} 31. hxg3 {[%clk 0:01:41.4]} 31... Rh8 {[%clk 0:01:01.6]} 32. Re5
{[%clk 0:01:01.2]} 32... Rh3 {[%clk 0:00:58.3]} 33. Nxd7 {[%clk 0:00:55.6]}
33... Kxd7 {[%clk 0:00:49.6]} 34. Kf2 {[%clk 0:00:53.1]} 34... Rh2+ {[%clk
0:00:47.4]} 35. Ke3 {[%clk 0:00:52.9]} 35... Rg2 {[%clk 0:00:45]} 36. Ne2 {[%clk
0:00:49.9]} 36... Rf5 {[%clk 0:00:39.4]} 37. c5 {[%clk 0:00:27.9]} 37... Ke7
{[%clk 0:00:37]} 38. d4 {[%clk 0:00:27.7]} 38... Kf6 {[%clk 0:00:35.7]} 39. Kd3
{[%clk 0:00:27.6]} 39... Rxe5 {[%clk 0:00:34.7]} 40. dxe5+ {[%clk 0:00:20.7]}
40... Ke7 {[%clk 0:00:34.9]} 41. a4 {[%clk 0:00:13.1]} 41... Rf2 {[%clk
0:00:34.3]} 42. b5 {[%clk 0:00:12.1]} 42... Rf3+ {[%clk 0:00:33.9]} 43. Kd2
{[%clk 0:00:09.9]} 43... cxb5 {[%clk 0:00:32.1]} 44. axb5 {[%clk 0:00:10.3]}
44... Rb3 {[%clk 0:00:26.5]} 45. Nd4 {[%clk 0:00:09.4]} 45... Rxg3 {[%clk
0:00:25]} 46. Nc6+ {[%clk 0:00:09.5]} 46... Kd7 {[%clk 0:00:24.3]} 47. Nxa7
{[%clk 0:00:10.4]} 47... Rb3 {[%clk 0:00:22]} 48. b6 {[%clk 0:00:11.3]} 48... g3
{[%clk 0:00:21.8]} 49. c6+ {[%clk 0:00:11.6]} 49... Ke7 {[%clk 0:00:13]} 50. c7
{[%clk 0:00:12.5]} 50... Rb2+ {[%clk 0:00:07.6]} 51. Kc3 {[%clk 0:00:12.7]}
51... Rb1 {[%clk 0:00:06.5]} 52. Nc6+ {[%clk 0:00:12.7]} 52... Kd7 {[%clk
0:00:06.2]} 53. Na7 {[%clk 0:00:12.1]} 53... Rc1+ {[%clk 0:00:06.5]} 54. Kd2
{[%clk 0:00:12.4]} 54... Rc4 {[%clk 0:00:04.9]} 55. b7 {[%clk 0:00:11.3]} 55...
Kxc7 {[%clk 0:00:04.3]} 56. Nb5+ {[%clk 0:00:11.8]} 56... Kxb7 {[%clk
0:00:04.5]} 57. Nd6+ {[%clk 0:00:12.3]} 57... Kc6 {[%clk 0:00:05.1]} 58. Nxc4
{[%clk 0:00:12.7]} 58... dxc4 {[%clk 0:00:06]} 59. f5 {[%clk 0:00:13.4]} 59...
exf5 {[%clk 0:00:06.2]} 60. e6 {[%clk 0:00:13.6]} 60... Kd6 {[%clk 0:00:06.8]}
61. e7 {[%clk 0:00:14.5]} 61... Kxe7 {[%clk 0:00:07.2]} 62. Kc3 {[%clk
0:00:15.3]} 62... f4 {[%clk 0:00:07.6]} 63. Kxc4 {[%clk 0:00:16.2]} 63... g2
{[%clk 0:00:08.2]} 0-1

[Event "Early-Titled-Tuesday-Blitz-August-29-2023"]
[Site "Chess.com"]
[Date "2023.08.29"]
[Round "1"]
[White "Kostukov_Alex"]
[Black "KononenkoD"]
[Result "0-1"]
[WhiteElo "2348"]
[BlackElo "2664"]
[TimeControl "180+1"]
[EndTime "8:08:25 PDT"]
[Termination "KononenkoD won on time"]

1. g3 {[%clk 0:03:00.9]} 1... c5 {[%clk 0:02:36.1]} 2. Bg2 {[%clk 0:02:56.7]}
2... Nc6 {[%clk 0:02:37]} 3. c4 {[%clk 0:02:56.1]} 3... g6 {[%clk 0:02:36.4]} 4.
Nf3 {[%clk 0:02:56.2]} 4... Bg7 {[%clk 0:02:36.8]} 5. O-O {[%clk 0:02:56.3]}
5... d6 {[%clk 0:02:37.4]} 6. Nc3 {[%clk 0:02:55.4]} 6... Be6 {[%clk 0:02:37.4]}
7. d3 {[%clk 0:02:54.1]} 7... Qd7 {[%clk 0:02:38]} 8. Rb1 {[%clk 0:02:50.9]}
8... Bh3 {[%clk 0:02:36.2]} 9. Bd2 {[%clk 0:02:50.6]} 9... h5 {[%clk 0:02:34]}
10. Bxh3 {[%clk 0:02:40.6]} 10... Qxh3 {[%clk 0:02:32.2]} 11. Ng5 {[%clk
0:02:41.2]} 11... Qf5 {[%clk 0:02:29.6]} 12. h4 {[%clk 0:02:40.4]} 12... Nf6
{[%clk 0:02:17.3]} 13. e4 {[%clk 0:02:36.1]} 13... Qd7 {[%clk 0:02:15.9]} 14. a3
{[%clk 0:02:30.5]} 14... O-O {[%clk 0:02:06.5]} 15. b4 {[%clk 0:02:28.6]} 15...
b6 {[%clk 0:02:02.6]} 16. b5 {[%clk 0:02:24.9]} 16... Nd4 {[%clk 0:02:01.6]} 17.
Nf3 {[%clk 0:02:18.7]} 17... Qg4 {[%clk 0:01:48]} 18. Nxd4 {[%clk 0:02:16.7]}
18... cxd4 {[%clk 0:01:48.6]} 19. Qxg4 {[%clk 0:02:12.9]} 19... hxg4 {[%clk
0:01:48.7]} 20. Nd5 {[%clk 0:02:08.3]} 20... Nxd5 {[%clk 0:01:46.5]} 21. cxd5
{[%clk 0:02:07.7]} 21... Rac8 {[%clk 0:01:45.4]} 22. Rfc1 {[%clk 0:02:07.9]}
22... Rc5 {[%clk 0:01:41.2]} 23. Bb4 {[%clk 0:02:06.5]} 23... Bh6 {[%clk
0:01:39]} 24. Bxc5 {[%clk 0:01:59.3]} 24... dxc5 {[%clk 0:01:34.7]} 25. Rc4
{[%clk 0:01:56.5]} 25... Bd2 {[%clk 0:01:28.6]} 26. Rb2 {[%clk 0:01:49.7]} 26...
Ba5 {[%clk 0:01:28.1]} 27. Kg2 {[%clk 0:01:42.4]} 27... e6 {[%clk 0:01:28.1]}
28. d6 {[%clk 0:01:29.4]} 28... e5 {[%clk 0:01:25.9]} 29. f3 {[%clk 0:01:22.5]}
29... gxf3+ {[%clk 0:01:25.3]} 30. Kxf3 {[%clk 0:01:22.8]} 30... Rd8 {[%clk
0:01:24.3]} 31. Rf2 {[%clk 0:01:21.7]} 31... Rxd6 {[%clk 0:01:23.7]} 32. Kg4
{[%clk 0:01:21.6]} 32... Bc3 {[%clk 0:01:19.2]} 33. Rc2 {[%clk 0:01:14]} 33...
Kg7 {[%clk 0:01:12.8]} 34. Rf2 {[%clk 0:01:12.9]} 34... f6 {[%clk 0:01:11.7]}
35. Ra4 {[%clk 0:01:10.9]} 35... Rd7 {[%clk 0:01:10.8]} 36. Rc4 {[%clk 0:01:11]}
36... Be1 {[%clk 0:01:09.4]} 37. Re2 {[%clk 0:01:10.1]} 37... Bc3 {[%clk
0:01:09.1]} 38. Rf2 {[%clk 0:01:08.3]} 38... Kf7 {[%clk 0:01:07.4]} 39. Ra4
{[%clk 0:01:07.4]} 39... Ke6 {[%clk 0:01:06.2]} 40. Rc4 {[%clk 0:01:07.4]} 40...
Rf7 {[%clk 0:01:05.6]} 41. Kh3 {[%clk 0:00:56.2]} 41... Rh7 {[%clk 0:01:04.7]}
42. g4 {[%clk 0:00:53.7]} 42... Be1 {[%clk 0:01:03.2]} 43. Rcc2 {[%clk
0:00:46.9]} 43... Bxf2 {[%clk 0:01:01.8]} 44. Rxf2 {[%clk 0:00:47.8]} 44... Rc7
{[%clk 0:00:57.5]} 45. Rc2 {[%clk 0:00:44.4]} 45... f5 {[%clk 0:00:55.6]} 46.
exf5+ {[%clk 0:00:34.2]} 46... gxf5 {[%clk 0:00:56.5]} 47. g5 {[%clk 0:00:33.9]}
47... e4 {[%clk 0:00:56.9]} 48. h5 {[%clk 0:00:31.8]} 48... exd3 {[%clk
0:00:54.9]} 49. Rg2 {[%clk 0:00:27.1]} 49... c4 {[%clk 0:00:55.1]} 50. g6 {[%clk
0:00:27.2]} 50... c3 {[%clk 0:00:51.6]} 51. h6 {[%clk 0:00:25.9]} 51... d2
{[%clk 0:00:42.8]} 52. g7 {[%clk 0:00:26]} 52... d1=Q {[%clk 0:00:28.4]} 53.
g8=Q+ {[%clk 0:00:25.8]} 53... Ke5 {[%clk 0:00:29]} 54. Re2+ {[%clk 0:00:20.9]}
54... Qxe2 {[%clk 0:00:21.9]} 55. Qe8+ {[%clk 0:00:20.5]} 55... Kd5 {[%clk
0:00:18]} 56. Qxe2 {[%clk 0:00:18.5]} 56... c2 {[%clk 0:00:18.5]} 57. Qf3+
{[%clk 0:00:18.3]} 57... Kc4 {[%clk 0:00:16.2]} 58. Qf4 {[%clk 0:00:17.8]} 58...
Re7 {[%clk 0:00:11.6]} 59. Qd2 {[%clk 0:00:14.1]} 59... Re3+ {[%clk 0:00:11.2]}
60. Kh4 {[%clk 0:00:13.3]} 60... Rc3 {[%clk 0:00:11.8]} 61. Qc1 {[%clk
0:00:12.8]} 61... d3 {[%clk 0:00:11.6]} 62. h7 {[%clk 0:00:12.9]} 62... d2
{[%clk 0:00:12.3]} 63. Qxd2 {[%clk 0:00:11.2]} 63... c1=Q {[%clk 0:00:13.2]} 64.
Qe2+ {[%clk 0:00:01.3]} 64... Kb3 {[%clk 0:00:12.9]} 0-1

[Event "Early-Titled-Tuesday-Blitz-August-29-2023"]
[Site "Chess.com"]
[Date "2023.08.29"]
[Round "1"]
[White "Fh2411"]
[Black "queen_iryna"]
[Result "1-0"]
[WhiteElo "2663"]
[BlackElo "2347"]
[TimeControl "180+1"]
[EndTime "8:08:32 PDT"]
[Termination "Fh2411 won by resignation"]

1. d4 {[%clk 0:03:00.9]} 1... d6 {[%clk 0:03:00.9]} 2. Nf3 {[%clk 0:02:59.3]}
2... g6 {[%clk 0:03:00.7]} 3. Bf4 {[%clk 0:02:58.3]} 3... Bg7 {[%clk 0:03:00]}
4. e3 {[%clk 0:02:58.9]} 4... Nd7 {[%clk 0:02:59.8]} 5. h3 {[%clk 0:02:58.3]}
5... e5 {[%clk 0:02:59.2]} 6. Bh2 {[%clk 0:02:59]} 6... Ne7 {[%clk 0:02:58.5]}
7. c4 {[%clk 0:02:59.6]} 7... O-O {[%clk 0:02:56.3]} 8. Nc3 {[%clk 0:03:00.2]}
8... exd4 {[%clk 0:02:56.2]} 9. Nxd4 {[%clk 0:02:58.5]} 9... Nc6 {[%clk
0:02:57.1]} 10. Nf3 {[%clk 0:02:49]} 10... Nde5 {[%clk 0:02:55]} 11. Be2 {[%clk
0:02:49.2]} 11... Bd7 {[%clk 0:02:51.7]} 12. O-O {[%clk 0:02:48.4]} 12... Nxf3+
{[%clk 0:02:51.7]} 13. Bxf3 {[%clk 0:02:49.3]} 13... Ne5 {[%clk 0:02:52.2]} 14.
Be2 {[%clk 0:02:37.9]} 14... Bc6 {[%clk 0:02:48.9]} 15. Nd5 {[%clk 0:02:33.3]}
15... Re8 {[%clk 0:02:44.5]} 16. Rc1 {[%clk 0:02:31.8]} 16... a5 {[%clk
0:02:34.4]} 17. b3 {[%clk 0:02:30.9]} 17... b6 {[%clk 0:02:27.6]} 18. Qd2 {[%clk
0:02:19.8]} 18... Nd7 {[%clk 0:02:18.3]} 19. Rfd1 {[%clk 0:02:14.6]} 19... Nc5
{[%clk 0:02:16.8]} 20. Bf3 {[%clk 0:02:14.9]} 20... Ne4 {[%clk 0:02:07.2]} 21.
Qd3 {[%clk 0:02:09.4]} 21... Nc5 {[%clk 0:02:05.6]} 22. Qc2 {[%clk 0:02:09.5]}
22... Qd7 {[%clk 0:01:53.5]} 23. a3 {[%clk 0:02:05.7]} 23... Bb7 {[%clk
0:01:47.9]} 24. b4 {[%clk 0:01:59.8]} 24... axb4 {[%clk 0:01:48.2]} 25. axb4
{[%clk 0:02:00.7]} 25... Ne6 {[%clk 0:01:47.3]} 26. c5 {[%clk 0:01:34.9]} 26...
bxc5 {[%clk 0:01:45.3]} 27. bxc5 {[%clk 0:01:35.2]} 27... Nxc5 {[%clk
0:01:38.9]} 28. Nxc7 {[%clk 0:01:30.4]} 28... Bxf3 {[%clk 0:01:34.8]} 29. gxf3
{[%clk 0:01:26.5]} 29... Qxc7 {[%clk 0:01:29.7]} 30. Bxd6 {[%clk 0:01:26]} 30...
Qc8 {[%clk 0:01:27.1]} 31. Qxc5 {[%clk 0:01:18.6]} 31... Qxh3 {[%clk 0:01:26.2]}
32. Bg3 {[%clk 0:01:19.2]} 32... Rad8 {[%clk 0:01:17.1]} 33. Rxd8 {[%clk
0:01:16.2]} 33... Rxd8 {[%clk 0:01:18]} 34. Qe7 {[%clk 0:01:16.4]} 34... Rc8
{[%clk 0:01:13.4]} 35. Rd1 {[%clk 0:01:14.8]} 35... Qe6 {[%clk 0:01:10.7]} 36.
Qxe6 {[%clk 0:01:01.2]} 36... fxe6 {[%clk 0:01:11.6]} 37. Rd7 {[%clk 0:01:00.8]}
37... Rf8 {[%clk 0:01:08.5]} 38. Kg2 {[%clk 0:01:01]} 38... Rf7 {[%clk
0:01:06.7]} 39. Rd8+ {[%clk 0:01:01.2]} 39... Rf8 {[%clk 0:01:01.5]} 40. Rd6
{[%clk 0:01:00.7]} 40... e5 {[%clk 0:01:00.7]} 41. e4 {[%clk 0:00:43.7]} 41...
Re8 {[%clk 0:00:54]} 42. Rd7 {[%clk 0:00:43.6]} 42... Bh6 {[%clk 0:00:50.7]} 43.
Bh4 {[%clk 0:00:41.2]} 43... Bg7 {[%clk 0:00:38.3]} 44. Bg5 {[%clk 0:00:38.7]}
44... h6 {[%clk 0:00:33.5]} 45. Be3 {[%clk 0:00:38.6]} 45... h5 {[%clk
0:00:30.3]} 46. Kg3 {[%clk 0:00:35.9]} 46... Bf6 {[%clk 0:00:29.3]} 47. Bc5
{[%clk 0:00:33.9]} 47... g5 {[%clk 0:00:26.7]} 48. Bd6 {[%clk 0:00:28.8]} 48...
Rc8 {[%clk 0:00:21.4]} 49. Bc7 {[%clk 0:00:24.4]} 49... Re8 {[%clk 0:00:20.6]}
50. Bd6 {[%clk 0:00:20.7]} 50... Rc8 {[%clk 0:00:20.6]} 51. Kh3 {[%clk
0:00:20.6]} 51... Rc3 {[%clk 0:00:20.1]} 52. Kg2 {[%clk 0:00:20.3]} 52... h4
{[%clk 0:00:19.3]} 53. Be7 {[%clk 0:00:15.3]} 53... Bxe7 {[%clk 0:00:18.8]} 54.
Rxe7 {[%clk 0:00:16.2]} 54... h3+ {[%clk 0:00:18.9]} 55. Kxh3 {[%clk 0:00:16.6]}
55... Rxf3+ {[%clk 0:00:19.1]} 56. Kg2 {[%clk 0:00:17.1]} 56... Rf7 {[%clk
0:00:14.4]} 57. Rxe5 {[%clk 0:00:17.6]} 57... Rg7 {[%clk 0:00:13.8]} 58. Kg3
{[%clk 0:00:18]} 58... Kf7 {[%clk 0:00:14.2]} 59. Kg4 {[%clk 0:00:18.2]} 59...
Kf6 {[%clk 0:00:14.6]} 60. Rf5+ {[%clk 0:00:18.8]} 60... Ke6 {[%clk 0:00:14.9]}
61. Rxg5 {[%clk 0:00:19.4]} 61... Rf7 {[%clk 0:00:15.3]} 62. f4 {[%clk
0:00:19.8]} 62... Ra7 {[%clk 0:00:14.8]} 63. Rg6+ {[%clk 0:00:20.2]} 63... Kf7
{[%clk 0:00:15.2]} 64. f5 {[%clk 0:00:19.8]} 64... Ra1 {[%clk 0:00:15.2]} 65.
Kf4 {[%clk 0:00:20.4]} 65... Ke7 {[%clk 0:00:13.9]} 66. Rh6 {[%clk 0:00:19]}
66... Kf7 {[%clk 0:00:13.1]} 67. Rh7+ {[%clk 0:00:18.6]} 67... Kg8 {[%clk
0:00:13.1]} 68. Rb7 {[%clk 0:00:19.2]} 68... Rf1+ {[%clk 0:00:13.9]} 69. Ke5
{[%clk 0:00:19.3]} 1-0

[Event "Early-Titled-Tuesday-Blitz-August-29-2023"]
[Site "Chess.com"]
[Date "2023.08.29"]
[Round "1"]
[White "cycygogne"]
[Black "RojonR"]
[Result "1-0"]
[WhiteElo "2236"]
[BlackElo "2577"]
[TimeControl "180+1"]
[EndTime "8:08:32 PDT"]
[Termination "cycygogne won by resignation"]

1. e4 {[%clk 0:03:00.9]} 1... c5 {[%clk 0:02:59.8]} 2. Nf3 {[%clk 0:03:00]} 2...
e6 {[%clk 0:02:59.2]} 3. d4 {[%clk 0:02:59.7]} 3... cxd4 {[%clk 0:02:52.2]} 4.
Nxd4 {[%clk 0:03:00.6]} 4... Nf6 {[%clk 0:02:51]} 5. Nc3 {[%clk 0:03:00.2]} 5...
Nc6 {[%clk 0:02:51]} 6. Ndb5 {[%clk 0:02:55.4]} 6... d6 {[%clk 0:02:30.6]} 7.
Bf4 {[%clk 0:02:54.7]} 7... e5 {[%clk 0:02:29.3]} 8. Bg5 {[%clk 0:02:55.2]} 8...
a6 {[%clk 0:02:29]} 9. Na3 {[%clk 0:02:55]} 9... b5 {[%clk 0:02:28.8]} 10. Bxf6
{[%clk 0:02:51.5]} 10... gxf6 {[%clk 0:02:27.2]} 11. Nd5 {[%clk 0:02:50.7]}
11... f5 {[%clk 0:02:22.6]} 12. Bd3 {[%clk 0:02:45.8]} 12... Be6 {[%clk
0:02:17.2]} 13. c3 {[%clk 0:02:23]} 13... Bg7 {[%clk 0:01:59.2]} 14. Qh5 {[%clk
0:02:19.8]} 14... h6 {[%clk 0:00:42.8]} 15. O-O {[%clk 0:02:14.7]} 15... Rc8
{[%clk 0:00:35.5]} 16. Ne3 {[%clk 0:01:54.2]} 16... f4 {[%clk 0:00:30.7]} 17.
Nf5 {[%clk 0:01:53]} 17... Bxf5 {[%clk 0:00:30.4]} 18. exf5 {[%clk 0:01:53.9]}
18... Qg5 {[%clk 0:00:29.9]} 19. Qh3 {[%clk 0:01:47.6]} 19... Bf6 {[%clk
0:00:22.3]} 20. Be4 {[%clk 0:01:40.3]} 20... Ne7 {[%clk 0:00:21.9]} 21. Rad1
{[%clk 0:01:39.8]} 21... Rd8 {[%clk 0:00:18.7]} 22. Rd2 {[%clk 0:01:27.3]} 22...
f3 {[%clk 0:00:09.6]} 23. Rfd1 {[%clk 0:01:26.7]} 23... fxg2 {[%clk 0:00:07.4]}
24. c4 {[%clk 0:01:20.9]} 24... b4 {[%clk 0:00:06.1]} 25. Nc2 {[%clk 0:01:20.8]}
25... Rg8 {[%clk 0:00:03.8]} 26. Ne3 {[%clk 0:01:20]} 26... h5 {[%clk
0:00:02.4]} 27. Nd5 {[%clk 0:01:14.4]} 27... Nxd5 {[%clk 0:00:02.2]} 28. Rxd5
{[%clk 0:01:15.3]} 28... Ke7 {[%clk 0:00:02.4]} 29. Qb3 {[%clk 0:01:04.7]} 29...
Qf4 {[%clk 0:00:01.8]} 30. Qxb4 {[%clk 0:00:59.8]} 30... Bh4 {[%clk 0:00:02.5]}
31. Qb7+ {[%clk 0:00:50.9]} 31... Kf8 {[%clk 0:00:01.4]} 32. R5d2 {[%clk
0:00:43.9]} 32... Rg4 {[%clk 0:00:02]} 33. Bf3 {[%clk 0:00:36.4]} 33... Rg5
{[%clk 0:00:01.9]} 34. Qc7 {[%clk 0:00:32.9]} 34... Rxf5 {[%clk 0:00:02.3]} 35.
Rxd6 {[%clk 0:00:29.7]} 35... Rxd6 {[%clk 0:00:03.2]} 36. Qxd6+ {[%clk
0:00:28.7]} 36... Kg7 {[%clk 0:00:03.8]} 37. Qd3 {[%clk 0:00:20.8]} 37... Qxf3
{[%clk 0:00:04.2]} 38. Qxf3 {[%clk 0:00:17.3]} 38... Rxf3 {[%clk 0:00:05.1]} 39.
Rd2 {[%clk 0:00:15.1]} 39... Bg5 {[%clk 0:00:04.2]} 40. Rc2 {[%clk 0:00:15]}
40... e4 {[%clk 0:00:04.2]} 41. Kxg2 {[%clk 0:00:14.7]} 41... h4 {[%clk
0:00:03.9]} 42. c5 {[%clk 0:00:13.4]} 42... h3+ {[%clk 0:00:04.1]} 43. Kf1
{[%clk 0:00:13]} 43... e3 {[%clk 0:00:04.4]} 44. c6 {[%clk 0:00:12.3]} 44...
Rxf2+ {[%clk 0:00:04.8]} 45. Rxf2 {[%clk 0:00:11.9]} 45... Bd8 {[%clk
0:00:03.3]} 46. Re2 {[%clk 0:00:10.5]} 46... Bb6 {[%clk 0:00:02.8]} 47. b4
{[%clk 0:00:08.3]} 47... f5 {[%clk 0:00:02.8]} 48. c7 {[%clk 0:00:07.5]} 48...
Bxc7 {[%clk 0:00:03.2]} 49. Rxe3 {[%clk 0:00:08.1]} 49... Bxh2 {[%clk
0:00:03.9]} 50. Rxh3 {[%clk 0:00:08]} 50... Bd6 {[%clk 0:00:04.8]} 51. a3 {[%clk
0:00:07.8]} 51... Kg6 {[%clk 0:00:03.4]} 52. Ke2 {[%clk 0:00:08.1]} 52... Kg5
{[%clk 0:00:03.6]} 53. Kf3 {[%clk 0:00:08.5]} 53... Be5 {[%clk 0:00:01.5]} 54.
Rh7 {[%clk 0:00:07.4]} 54... Bb2 {[%clk 0:00:02]} 55. a4 {[%clk 0:00:06.9]}
55... Bc3 {[%clk 0:00:01.1]} 56. b5 {[%clk 0:00:07.4]} 56... axb5 {[%clk
0:00:02]} 57. axb5 {[%clk 0:00:08.3]} 57... Bd4 {[%clk 0:00:02.3]} 58. Rb7
{[%clk 0:00:08.1]} 58... Kf6 {[%clk 0:00:02.7]} 59. Rd7 {[%clk 0:00:08.3]} 59...
Bc5 {[%clk 0:00:01.8]} 60. Rc7 {[%clk 0:00:08.1]} 60... Bd4 {[%clk 0:00:01.9]}
61. Rc6+ {[%clk 0:00:08.4]} 61... Ke5 {[%clk 0:00:02.3]} 62. b6 {[%clk
0:00:08.9]} 62... Kd5 {[%clk 0:00:03]} 63. b7 {[%clk 0:00:08.9]} 63... Ba7
{[%clk 0:00:03.2]} 64. Rc8 {[%clk 0:00:09]} 1-0

[Event "Early-Titled-Tuesday-Blitz-August-29-2023"]
[Site "Chess.com"]
[Date "2023.08.29"]
[Round "1"]
[White "GMKrikor"]
[Black "Shuvalov"]
[Result "1-0"]
[WhiteElo "2861"]
[BlackElo "2449"]
[TimeControl "180+1"]
[EndTime "8:08:33 PDT"]
[Termination "GMKrikor won on time"]

1. Nf3 {[%clk 0:03:00.9]} 1... Nf6 {[%clk 0:02:59.2]} 2. c4 {[%clk 0:03:00.4]}
2... g6 {[%clk 0:02:57.6]} 3. Nc3 {[%clk 0:02:59.8]} 3... d5 {[%clk 0:02:57.8]}
4. cxd5 {[%clk 0:02:59.6]} 4... Nxd5 {[%clk 0:02:58.7]} 5. h4 {[%clk 0:02:59.7]}
5... c5 {[%clk 0:02:54.5]} 6. h5 {[%clk 0:02:54.4]} 6... Bg7 {[%clk 0:02:47.7]}
7. h6 {[%clk 0:02:33.9]} 7... Bf6 {[%clk 0:02:46.2]} 8. Ne4 {[%clk 0:02:34.1]}
8... Nd7 {[%clk 0:02:38.9]} 9. Nxf6+ {[%clk 0:02:29.6]} 9... N5xf6 {[%clk
0:02:36.9]} 10. b3 {[%clk 0:02:29.8]} 10... O-O {[%clk 0:02:35.9]} 11. Bb2
{[%clk 0:02:30.1]} 11... b6 {[%clk 0:02:33.9]} 12. e3 {[%clk 0:02:20.6]} 12...
Bb7 {[%clk 0:02:27.9]} 13. Bc4 {[%clk 0:02:20]} 13... Bd5 {[%clk 0:02:20.6]} 14.
Qc2 {[%clk 0:02:09.3]} 14... Qc7 {[%clk 0:02:17.5]} 15. Qc3 {[%clk 0:01:42.3]}
15... Qb7 {[%clk 0:02:13.1]} 16. O-O-O {[%clk 0:01:38.1]} 16... b5 {[%clk
0:02:07.9]} 17. Bxd5 {[%clk 0:01:37.8]} 17... Qxd5 {[%clk 0:02:08.8]} 18. Kb1
{[%clk 0:01:36.3]} 18... c4 {[%clk 0:02:06.3]} 19. d3 {[%clk 0:01:34.3]} 19...
cxb3 {[%clk 0:02:04]} 20. Qxb3 {[%clk 0:01:26.2]} 20... Qxb3 {[%clk 0:02:03]}
21. axb3 {[%clk 0:01:27.1]} 21... a5 {[%clk 0:02:01]} 22. Nd4 {[%clk 0:01:20.9]}
22... Nc5 {[%clk 0:01:47.9]} 23. Nc6 {[%clk 0:01:16.4]} 23... Rfe8 {[%clk
0:01:40.8]} 24. Ka2 {[%clk 0:01:09.7]} 24... Nd5 {[%clk 0:01:33]} 25. Bd4 {[%clk
0:01:00.8]} 25... Ne6 {[%clk 0:01:22.4]} 26. Kb2 {[%clk 0:01:01]} 26... a4
{[%clk 0:01:17.8]} 27. Ra1 {[%clk 0:00:55.4]} 27... Rac8 {[%clk 0:01:07.2]} 28.
Rhc1 {[%clk 0:00:39.6]} 28... Nxd4 {[%clk 0:00:47.8]} 29. Nxd4 {[%clk
0:00:40.5]} 29... Nb4 {[%clk 0:00:47]} 30. Rxc8 {[%clk 0:00:39.9]} 30... Rxc8
{[%clk 0:00:45.8]} 31. bxa4 {[%clk 0:00:40.2]} 31... Nxd3+ {[%clk 0:00:44.1]}
32. Kb3 {[%clk 0:00:38.7]} 32... Nc5+ {[%clk 0:00:43.1]} 33. Kb4 {[%clk
0:00:38.1]} 33... Nxa4 {[%clk 0:00:41]} 34. Nxb5 {[%clk 0:00:36.1]} 34... Nb2
{[%clk 0:00:39.4]} 35. Ra7 {[%clk 0:00:27.9]} 35... Kf8 {[%clk 0:00:35.3]} 36.
f3 {[%clk 0:00:26.1]} 36... Nd3+ {[%clk 0:00:34.8]} 37. Kb3 {[%clk 0:00:26.2]}
37... Ne1 {[%clk 0:00:33.9]} 38. Ra2 {[%clk 0:00:24.2]} 38... f6 {[%clk
0:00:27]} 39. Rd2 {[%clk 0:00:23]} 39... Rc1 {[%clk 0:00:22.5]} 40. Nc3 {[%clk
0:00:19.8]} 40... g5 {[%clk 0:00:20.5]} 41. e4 {[%clk 0:00:19.8]} 41... Kf7
{[%clk 0:00:20]} 42. Nd5 {[%clk 0:00:20.2]} 42... e6 {[%clk 0:00:18.6]} 43. Ne3
{[%clk 0:00:20]} 43... Kg6 {[%clk 0:00:17.5]} 44. Ng4 {[%clk 0:00:20.2]} 44...
f5 {[%clk 0:00:17.5]} 45. exf5+ {[%clk 0:00:21.1]} 45... exf5 {[%clk 0:00:18.2]}
46. Rd6+ {[%clk 0:00:21.6]} 46... Kh5 {[%clk 0:00:17.5]} 47. Ne3 {[%clk
0:00:20]} 47... f4 {[%clk 0:00:12.8]} 48. Ng4 {[%clk 0:00:18.3]} 48... Nxg2
{[%clk 0:00:11.7]} 49. Rd7 {[%clk 0:00:19]} 49... Ne1 {[%clk 0:00:10.1]} 50.
Rxh7 {[%clk 0:00:18.8]} 50... Nxf3 {[%clk 0:00:10.3]} 51. Nf2 {[%clk 0:00:09.8]}
51... Kg6 {[%clk 0:00:09.9]} 52. Rh8 {[%clk 0:00:10.1]} 52... Rf1 {[%clk
0:00:09.5]} 53. Ng4 {[%clk 0:00:05.5]} 53... Rh1 {[%clk 0:00:08.3]} 54. Rg8+
{[%clk 0:00:05.4]} 54... Kf5 {[%clk 0:00:08.1]} 55. Nf2 {[%clk 0:00:04.9]} 55...
Rxh6 {[%clk 0:00:07.4]} 56. Rf8+ {[%clk 0:00:05.3]} 56... Rf6 {[%clk 0:00:07.4]}
57. Rg8 {[%clk 0:00:05.3]} 57... Ne5 {[%clk 0:00:07]} 58. Kc3 {[%clk 0:00:04.8]}
58... g4 {[%clk 0:00:07]} 59. Kd4 {[%clk 0:00:05.5]} 59... g3 {[%clk 0:00:06.2]}
60. Ne4 {[%clk 0:00:06.1]} 60... Nf3+ {[%clk 0:00:05.3]} 61. Kd5 {[%clk
0:00:05.2]} 61... Rg6 {[%clk 0:00:02.9]} 62. Rf8+ {[%clk 0:00:01.6]} 62... Kg4
{[%clk 0:00:02.8]} 63. Nc3 {[%clk 0:00:01.2]} 63... g2 {[%clk 0:00:02]} 64. Ne2
{[%clk 0:00:02]} 64... Nh4 {[%clk 0:00:01.3]} 65. Rxf4+ {[%clk 0:00:02.5]} 65...
Kh3 {[%clk 0:00:01.3]} 66. Rf8 {[%clk 0:00:03.4]} 1-0